bitfinex/quotes_SOLUSD_20251006
["timestamp","ask_amount","ask_price","bid_price","bid_amount"]
[1759749931928,0.69,232.79,232.73,4.99682412]
[1759749932433,0.69,232.78,232.71,13.59518364]
[1759749932634,0.69,232.78,232.73,30.12]
[1759749933025,0.69,232.77,232.71,12.89518364]
[1759749933223,0.69,232.76,232.72,30.12]
[1759749933453,0.69,232.75,232.72,30.12]
[1759749933626,4.98626973,232.77,232.72,30.82]
[1759749934540,4.98626973,232.77,232.73,0.67]
[1759749935042,23.63401525,232.8,232.72,34.41698925]
[1759749935043,4.9758932,232.79,232.74,0.67]
[1759749935720,4.9758932,232.79,232.72,34.41698925]
[1759749935930,4.9758932,232.79,232.73,0.67]
[1759749936538,4.2958932,232.79,232.73,4.96678828]
[1759749936714,4.2958932,232.79,232.73,4.29678828]
[1759749936918,4.2958932,232.79,232.74,0.67]
[1759749937137,4.9758932,232.79,232.75,0.67]
[1759749939542,4.97596292,232.78,232.73,4.96678828]
[1759749939842,4.29596292,232.78,232.73,0.67]
[1759749940037,0.68,232.77,232.73,0.67]
[1759749940248,0.68,232.76,232.72,30.12]
[1759749940423,4.97596292,232.78,232.73,0.67]
[1759749940625,0.68,232.77,232.73,0.67]
[1759749942347,0.68,232.78,232.73,0.67]
[1759749942721,4.29571716,232.79,232.73,0.67]
[1759749942921,0.68,232.78,232.73,0.67]
[1759749943138,0.68,232.77,232.73,0.67]
[1759749943522,4.29606181,232.78,232.74,0.67]
[1759749943717,4.97606181,232.78,232.74,0.67]
[1759749945152,4.29571716,232.79,232.74,0.67]
[1759749945325,4.29571716,232.79,232.73,4.29681461]
[1759749945529,0.68,232.78,232.74,0.67]
[1759749945945,4.29571716,232.79,232.74,0.67]
[1759749946131,4.97571716,232.79,232.75,0.67]
[1759749947452,0.78,232.88,232.79,20.8]
[1759749947757,0.78,232.87,232.8,30.77]
[1759749948255,4.29459479,232.86,232.81,13.56130481]
[1759749948440,4.29459479,232.86,232.82,0.67]
[1759749948639,4.95459479,232.86,232.82,0.67]
[1759749948825,4.29459479,232.86,232.82,0.67]
[1759749949032,4.29459479,232.86,232.83,0.67]
[1759749949352,4.95459479,232.86,232.82,4.29459479]
[1759749949652,4.95459479,232.86,232.82,4.96459479]
[1759749950450,4.29459479,232.86,232.82,4.96459479]
[1759749950670,4.29459479,232.86,232.83,0.67]
[1759749953556,0.1,232.87,232.84,0.67]
[1759749953742,0.1,232.87,232.85,0.67]
[1759749955246,0.1,232.87,232.84,30.1]
[1759749955440,0.1,232.87,232.84,30.77]
[1759749955640,0.1,232.87,232.84,32.48869293]
[1759749955841,0.1,232.87,232.84,30.77]
[1759749957355,0.1,232.87,232.84,30.1]
[1759749957563,0.1,232.87,232.84,30.77]
[1759749957762,4.39430717,232.87,232.84,30.77]
[1759749959347,0.1,232.87,232.85,0.67]
[1759749959540,0.1,232.87,232.86,0.67]
[1759749960968,0.1,232.87,232.84,0.67]
[1759749961142,0.1,232.87,232.85,30.75]
[1759749961948,4.39425089,232.87,232.85,30.08]
[1759749962153,0.66,232.86,232.83,20.8]
[1759749962360,4.39425089,232.87,232.83,51.55]
[1759749962562,4.39425089,232.87,232.83,50.88]
[1759749962759,0.1,232.87,232.84,0.67]
[1759749963058,0.1,232.87,232.85,0.67]
[1759749963367,0.1,232.87,232.83,51.55]
[1759749963669,0.1,232.87,232.84,0.67]
[1759749964043,0.1,232.87,232.83,50.88]
[1759749964244,0.1,232.87,232.84,0.67]
[1759749964466,0.1,232.87,232.85,0.67]
[1759749965651,0.1,232.87,232.86,0.67]
[1759749965948,0.1,232.87,232.86,30.75]
[1759749966355,0.1,232.87,232.86,35.04442583]
[1759749967868,0.1,232.87,232.86,49.52797597]
[1759749968048,0.1,232.87,232.86,45.92090104]
[1759749968441,0.1,232.87,232.86,58.62125416]
[1759749968948,0.1,232.87,232.86,54.32682833]
[1759749969151,0.1,232.87,232.86,0.67]
[1759749969348,0.1,232.87,232.86,51.55]
[1759749970243,0.1,232.87,232.86,21.47]
[1759749970447,0.1,232.87,232.86,0.67]
[1759749970858,0.1,232.87,232.86,30.75]
[1759749971050,0.1,232.87,232.86,51.55]
[1759749974354,0.1,232.87,232.86,20.8]
[1759749974674,4.39424142,232.87,232.86,20.8]
[1759749975269,4.39424142,232.87,232.86,50.88]
[1759749975477,0.1,232.87,232.86,50.88]
[1759749977055,0.1,232.87,232.86,20.8]
[1759749977256,0.1,232.87,232.86,50.88]
[1759749977457,0.1,232.87,232.86,20.8]
[1759749977669,0.1,232.87,232.86,50.88]
[1759749978178,0.1,232.87,232.86,51.59]
[1759749978673,0.1,232.87,232.86,50.88]
[1759749979372,5.05424142,232.87,232.86,30.06]
[1759749980170,5.05424142,232.87,232.83,20.8]
[1759749980368,0.66,232.86,232.84,30.06]
[1759749980677,0.66,232.85,232.81,20.8]
[1759749980859,0.66,232.85,232.81,21.51]
[1759749981191,15.78984497,232.87,232.81,21.51]
[1759749981549,4.29461026,232.85,232.81,21.51]
[1759749982161,4.29461026,232.85,232.82,30.77]
[1759749983162,4.29442583,232.86,232.82,30.77]
[1759749983470,4.29442583,232.86,232.83,0.71]
[1759749983672,4.29442583,232.86,232.84,0.71]
[1759749983857,4.29442583,232.86,232.81,20.8]
[1759749983858,0.66,232.85,232.81,20.8]
[1759749984063,4.29442583,232.86,232.82,0.71]
[1759749984258,0.66,232.85,232.8,20.8]
[1759749984462,0.66,232.85,232.81,30.06]
[1759749984663,0.66,232.85,232.81,30.77]
[1759749984881,0.66,232.85,232.81,0.71]
[1759749985262,4.2947947,232.84,232.81,0.71]
[1759749989688,4.9547947,232.84,232.8,20.8]
[1759749989890,0.66,232.83,232.82,30.06]
[1759749990790,0.66,232.83,232.78,0.71]
[1759749990997,0.66,232.82,232.79,50.86]
[1759749991211,15.03178147,232.84,232.79,50.86]
[1759749991371,0.66,232.83,232.79,50.86]
[1759749992109,0.66,232.83,232.79,51.57]
[1759749992482,4.29442583,232.86,232.79,51.57]
[1759749992483,0.66,232.84,232.79,51.57]
[1759749992876,0.66,232.83,232.79,51.57]
[1759749993399,4.29516364,232.82,232.79,51.57]
[1759749996201,10.73710518,232.84,232.79,51.57]
[1759749996495,11.40710518,232.84,232.79,51.57]
[1759749996993,11.40710518,232.84,232.79,50.86]
[1759749997193,11.40710518,232.84,232.8,0.7]
[1759750000390,15.70189988,232.84,232.8,0.7]
[1759750000594,15.70189988,232.84,232.79,20.8]
[1759750000799,0.67,232.83,232.8,30.06]
[1759750002101,15.03189988,232.84,232.8,30.06]
[1759750002300,15.70189988,232.84,232.8,30.06]
[1759750002595,15.70189988,232.84,232.79,21.5]
[1759750002803,0.67,232.83,232.8,30.06]
[1759750003092,0.67,232.82,232.76,3.59999208]
[1759750003297,15.03189988,232.84,232.78,21.5]
[1759750003494,0.67,232.83,232.78,21.5]
[1759750003699,0.67,232.83,232.79,30.76]
[1759750004093,4.29516364,232.82,232.79,30.76]
[1759750005895,4.29516364,232.82,232.8,0.7]
[1759750007283,4.29497916,232.83,232.79,30.76]
[1759750007482,4.96497916,232.83,232.79,30.76]
[1759750008104,4.96497916,232.83,232.8,0.68]
[1759750008702,4.29497916,232.83,232.8,0.68]
[1759750008919,4.29442583,232.86,232.81,0.68]
[1759750009083,4.29442583,232.86,232.82,30.06]
[1759750009422,4.98442583,232.86,232.82,30.74]
[1759750009580,4.29442583,232.86,232.82,30.06]
[1759750009782,0.69,232.85,232.82,30.06]
[1759750010306,4.2947947,232.84,232.82,30.06]
[1759750012413,4.2947947,232.84,232.81,0.68]
[1759750012589,4.2947947,232.84,232.83,30.06]
[1759750014718,15.72083615,232.86,232.83,30.06]
[1759750016581,15.72083615,232.86,232.84,30.74]
[1759750016582,4.29442583,232.86,232.84,30.74]
[1759750016805,4.29442583,232.86,232.85,0.68]
[1759750017909,4.29442583,232.86,232.84,30.06]
[1759750018093,4.29442583,232.86,232.84,30.74]
[1759750019009,4.29442583,232.86,232.85,0.68]
[1759750019785,4.29442583,232.86,232.84,30.06]
[1759750020006,4.29442583,232.86,232.84,30.74]
[1759750020307,4.29442583,232.86,232.85,0.68]
[1759750020511,0.1,232.87,232.85,0.68]
[1759750021110,4.39426097,232.87,232.86,0.68]
[1759750021315,4.39426097,232.87,232.84,30.06]
[1759750021490,4.39426097,232.87,232.85,0.68]
[1759750022389,4.39426097,232.87,232.86,0.68]
[1759750023112,0.1,232.87,232.86,0.68]
[1759750025298,4.39432634,232.87,232.82,3.61069361]
[1759750025497,4.39432634,232.87,232.76,7.22919787]
[1759750025498,0.69,232.86,232.79,33.65069361]
[1759750025699,0.69,232.86,232.8,0.68]
[1759750027219,4.29461026,232.85,232.8,0.68]
[1759750027391,4.98461026,232.85,232.81,0.68]
[1759750027597,4.29461026,232.85,232.82,0.68]
[1759750027821,4.98461026,232.85,232.8,0.68]
[1759750028019,4.29461026,232.85,232.8,0.68]
[1759750028612,4.29442583,232.86,232.8,0.68]
[1759750029904,4.98442583,232.86,232.8,0.68]
[1759750031029,4.29442583,232.86,232.8,8.58854652]
[1759750031213,4.29442583,232.86,232.81,4.29308692]
[1759750031404,4.29442583,232.86,232.82,0.68]
[1759750031606,4.29442583,232.86,232.83,30.72]
[1759750032006,0.1,232.87,232.84,0.68]
[1759750032936,0.1,232.87,232.84,4.97461784]
[1759750033113,0.1,232.87,232.85,0.68]
[1759750033510,0.1,232.87,232.86,20.8]
[1759750033722,0.1,232.87,232.86,25.09180516]
[1759750035311,0.1,232.87,232.86,29.38623099]
[1759750035904,0.1,232.87,232.86,59.42623099]
[1759750036435,0.1,232.87,232.86,55.81442583]
[1759750040524,0.1,232.87,232.86,66.69090104]
[1759750041432,0.1,232.87,232.86,68.40907719]
[1759750048444,0.1,232.9,232.86,83.95319006]
[1759750048610,0.72,232.98,232.92,20.8]
[1759750048810,0.72,232.98,232.96,20.8]
[1759750049010,0.72,232.98,232.97,30.02]
[1759750049919,0.1,233.01,232.97,30.69]
[1759750050116,0.1,233.01,232.98,0.67]
[1759750050446,0.82,233.01,232.99,30.02]
[1759750050740,0.82,233.01,233.0,30.02]
[1759750051921,0.82,233.01,232.98,20.8]
[1759750052539,0.82,233.01,232.99,30.02]
[1759750053043,0.1,233.01,232.99,30.02]
[1759750057219,0.1,233.01,232.99,30.68]
[1759750058645,0.1,233.01,233.0,0.66]
[1759750061419,0.1,233.01,232.99,34.3119639]
[1759750061636,0.81,233.01,232.99,34.3119639]
[1759750061839,0.1,233.01,232.99,34.9719639]
[1759750062044,0.1,233.01,232.99,34.3119639]
[1759750062244,0.1,233.01,232.99,34.9719639]
[1759750062440,0.1,233.01,233.0,0.66]
[1759750063528,0.1,233.01,233.0,15.8283207]
[1759750064034,0.1,233.01,233.0,30.66]
[1759750064232,0.1,233.01,233.0,30.0]
[1759750064426,0.1,233.01,233.0,34.95184549]
[1759750067329,0.1,233.01,233.0,45.8283207]
[1759750067841,0.1,233.01,233.0,50.92889252]
[1759750070429,0.1,233.03,233.02,31.67647521]
[1759750070662,0.1,233.03,233.02,61.67647521]
[1759750070836,0.1,233.03,233.02,41.57647521]
[1759750071236,0.1,233.03,233.02,43.29347132]
[1759750072534,0.1,233.03,233.02,47.58494844]
[1759750073031,0.76,233.07,233.06,31.67647521]
[1759750073032,0.1,233.07,233.06,31.67647521]
[1759750073228,0.1,233.07,233.06,61.67647521]
[1759750073427,0.1,233.07,233.06,62.37647521]
[1759750073632,0.1,233.07,233.06,64.09310289]
[1759750074153,0.1,233.07,233.06,34.09310289]
[1759750074341,0.1,233.07,233.06,64.09310289]
[1759750074540,0.1,233.07,233.06,1.71662768]
[1759750074855,0.1,233.07,233.06,50.8]
[1759750076144,0.76,233.07,233.05,1.71684872]
[1759750076446,0.76,233.07,233.03,4.99127222]
[1759750076447,0.1,233.07,233.06,30.0]
[1759750077255,0.76,233.07,233.06,30.0]
[1759750077829,0.76,233.07,233.04,1.71692241]
[1759750078026,0.66,233.06,233.05,30.0]
[1759750078839,0.1,233.07,233.05,30.0]
[1759750079038,0.66,233.06,233.05,30.0]
[1759750081139,0.1,233.07,233.05,30.0]
[1759750081739,0.1,233.07,233.05,30.7]
[1759750082157,0.1,233.07,233.05,30.0]
[1759750082855,0.76,233.07,233.05,30.0]
[1759750083243,0.76,233.07,233.04,20.8]
[1759750083579,0.1,233.07,233.05,30.0]
[1759750087345,0.76,233.07,233.05,30.0]
[1759750087546,0.1,233.07,233.05,30.0]
[1759750089573,0.1,233.07,233.05,30.7]
[1759750089867,0.1,233.07,233.05,30.0]
[1759750090368,0.1,233.07,233.05,30.7]
[1759750090758,0.1,233.07,233.05,30.0]
[1759750091154,0.1,233.07,233.06,0.7]
[1759750092472,0.1,233.07,233.06,32.37647521]
[1759750092654,0.1,233.07,233.06,13.29317656]
[1759750093170,0.1,233.07,233.06,16.8876483]
[1759750093774,0.1,233.07,233.06,13.29317656]
[1759750094272,0.1,233.07,233.06,17.58391714]
[1759750094660,0.1,233.08,233.07,31.67647521]
[1759750094864,0.1,233.08,233.07,62.35647521]
[1759750095264,0.1,233.08,233.07,68.3635857]
[1759750096351,0.1,233.08,233.07,67.6635857]
[1759750096550,0.1,233.08,233.07,68.3635857]
[1759750098267,0.1,233.08,233.07,71.95075297]
[1759750100181,0.1,233.08,233.07,68.3635857]
[1759750100372,0.1,233.08,233.07,73.17163399]
[1759750100576,0.1,233.08,233.07,68.3635857]
[1759750100768,0.1,233.11,233.07,83.87106194]
[1759750100971,0.69,233.16,233.12,20.8]
[1759750101166,4.38795949,233.22,233.16,20.8]
[1759750101366,0.1,233.22,233.17,29.98]
[1759750101769,0.69,233.21,233.17,29.98]
[1759750102069,0.69,233.2,233.17,29.98]
[1759750102273,0.69,233.19,233.17,29.98]
[1759750102593,0.1,233.22,233.18,29.98]
[1759750102760,0.69,233.21,233.19,29.98]
[1759750102964,0.69,233.2,233.19,29.98]
[1759750103693,4.97823048,233.2,233.12,25.05576057]
[1759750103861,0.69,233.19,233.13,52.49633305]
[1759750104066,0.69,233.18,233.13,52.49633305]
[1759750104267,0.69,233.18,233.14,0.67]
[1759750104580,0.69,233.18,233.13,52.49633305]
[1759750104581,0.69,233.2,233.17,20.8]
[1759750104756,0.69,233.19,233.18,29.98]
[1759750105581,0.69,233.21,233.18,29.98]
[1759750109369,4.38781063,233.22,233.18,29.98]
[1759750109577,0.79,233.22,233.18,30.65]
[1759750109770,0.69,233.21,233.18,29.98]
[1759750110002,0.79,233.22,233.18,29.98]
[1759750110203,0.69,233.21,233.18,29.98]
[1759750111204,0.1,233.22,233.19,0.67]
[1759750111369,0.1,233.22,233.2,29.98]
[1759750112206,0.79,233.22,233.17,21.47]
[1759750112401,0.1,233.22,233.21,20.8]
[1759750112571,0.1,233.22,233.21,50.78]
[1759750113270,0.79,233.22,233.21,50.78]
[1759750113997,5.07779692,233.22,233.21,50.78]
[1759750114176,5.07779692,233.22,233.21,51.45]
[1759750114177,0.1,233.22,233.21,51.45]
[1759750114877,0.1,233.22,233.21,27.4735777]
[1759750115081,0.1,233.22,233.21,53.16559692]
[1759750115484,0.1,233.22,233.21,57.4535777]
[1759750115792,0.1,233.22,233.21,61.03052346]
[1759750116883,0.1,233.22,233.21,71.90699867]
[1759750117087,0.1,233.22,233.21,68.33005291]
[1759750121396,0.1,233.22,233.21,38.35005291]
[1759750121575,0.1,233.22,233.21,68.37005291]
[1759750124800,0.1,233.22,233.21,67.70005291]
[1759750125610,0.1,233.22,233.21,38.35005291]
[1759750125807,0.1,233.22,233.21,68.37005291]
[1759750127095,0.1,233.22,233.21,67.70005291]
[1759750127799,0.1,233.22,233.21,68.37005291]
[1759750132112,0.1,233.22,233.21,71.94699867]
[1759750132317,0.1,233.22,233.21,68.37005291]
[1759750132810,0.1,233.22,233.21,71.26626762]
[1759750134689,0.1,233.22,233.21,67.70005291]
[1759750134890,0.1,233.22,233.21,56.8235777]
[1759750135193,0.1,233.22,233.21,60.38979241]
[1759750135706,0.1,233.22,233.21,26.08181163]
[1759750135907,0.77,233.22,233.21,30.0]
[1759750136219,0.1,233.22,233.21,30.0]
[1759750136595,0.1,233.22,233.21,34.93798078]
[1759750137101,0.1,233.22,233.21,38.50419549]
[1759750137410,0.1,233.22,233.21,45.81445599]
[1759750137809,0.1,233.22,233.21,47.52990575]
[1759750140116,0.1,233.22,233.21,45.81445599]
[1759750141018,0.1,233.25,233.24,20.8]
[1759750141317,0.1,233.25,233.24,50.78]
[1759750141614,0.1,233.25,233.24,51.43]
[1759750142210,0.1,233.25,233.24,66.59390446]
[1759750144024,0.77,233.31,233.28,20.8]
[1759750144222,0.77,233.31,233.29,34.26651035]
[1759750144905,0.77,233.31,233.29,29.98]
[1759750145109,0.67,233.3,233.29,29.98]
[1759750145306,0.1,233.31,233.29,50.78]
[1759750145520,0.77,233.31,233.29,50.78]
[1759750145816,0.67,233.3,233.29,50.78]
[1759750146219,0.1,233.31,233.29,50.78]
[1759750146604,0.77,233.31,233.29,50.78]
[1759750147225,0.1,233.31,233.29,50.78]
[1759750147727,0.77,233.31,233.29,50.78]
[1759750148918,0.67,233.3,233.29,50.78]
[1759750149603,0.1,233.31,233.29,50.78]
[1759750149819,0.67,233.3,233.29,50.78]
[1759750150024,0.67,233.3,233.28,20.8]
[1759750150230,4.38621794,233.31,233.29,29.96]
[1759750150408,4.38621794,233.31,233.3,29.96]
[1759750150818,5.05621794,233.31,233.3,29.96]
[1759750151407,0.77,233.31,233.3,29.96]
[1759750153008,0.1,233.31,233.3,29.96]
[1759750155520,0.1,233.31,233.3,34.18351261]
[1759750155711,0.1,233.31,233.3,34.89632661]
[1759750156414,0.1,233.31,233.3,45.77280182]
[1759750156618,0.1,233.31,233.3,50.53494413]
[1759750157007,0.1,233.31,233.3,25.56214231]
[1759750157209,0.1,233.31,233.3,29.96]
[1759750157425,0.1,233.31,233.29,4.76214231]
[1759750157626,0.1,233.31,233.3,50.76]
[1759750157829,0.1,233.31,233.3,54.34033678]
[1759750158028,0.1,233.31,233.3,51.45]
[1759750158219,0.1,233.31,233.3,50.76]
[1759750160234,0.1,233.31,233.3,45.81280182]
[1759750160623,0.72,233.38,233.34,31.67647521]
[1759750160927,0.72,233.38,233.35,33.55867031]
[1759750161435,0.72,233.4,233.38,20.8]
[1759750161614,0.72,233.4,233.39,29.98]
[1759750162232,0.72,233.42,233.39,29.98]
[1759750162414,0.72,233.45,233.4,0.69]
[1759750162615,0.72,233.44,233.41,29.98]
[1759750162818,0.82,233.46,233.41,30.67]
[1759750163020,0.82,233.46,233.41,34.24867031]
[1759750163223,0.1,233.46,233.42,11.56647521]
[1759750163426,0.1,233.46,233.44,3.57867031]
[1759750163722,0.1,233.46,233.45,33.55867031]
[1759750163926,0.1,233.46,233.45,33.54803842]
[1759750164219,0.1,233.46,233.45,29.98]
[1759750164819,0.1,233.46,233.45,30.67]
[1759750165525,0.1,233.46,233.43,4.25803842]
[1759750165722,0.72,233.45,233.44,50.8]
[1759750166342,0.1,233.46,233.44,50.8]
[1759750166517,4.38345354,233.46,233.44,50.8]
[1759750166720,0.72,233.45,233.44,20.8]
[1759750167223,0.72,233.45,233.44,50.8]
[1759750168337,0.72,233.45,233.39,3.56803842]
[1759750168514,0.72,233.44,233.4,30.0]
[1759750168720,0.72,233.44,233.41,30.0]
[1759750168928,2.64419325,233.45,233.41,30.0]
[1759750168929,0.72,233.43,233.41,30.0]
[1759750169134,0.72,233.42,233.41,30.0]
[1759750169442,0.72,233.44,233.41,30.0]
[1759750169644,17.73611933,233.46,233.41,30.0]
[1759750169645,0.72,233.43,233.41,30.0]
[1759750170256,0.72,233.45,233.41,30.0]
[1759750170631,0.72,233.44,233.41,30.0]
[1759750171260,4.38345354,233.46,233.42,0.69]
[1759750171439,0.72,233.45,233.43,30.0]
[1759750171750,0.72,233.44,233.41,20.8]
[1759750171957,0.72,233.43,233.42,30.0]
[1759750172152,5.10345354,233.46,233.41,20.8]
[1759750172347,0.72,233.45,233.42,30.0]
[1759750172643,4.38345354,233.46,233.42,30.0]
[1759750172644,5.00377046,233.44,233.42,30.0]
[1759750172956,4.38354052,233.46,233.42,30.69]
[1759750173149,0.1,233.46,233.43,0.69]
[1759750173348,0.1,233.46,233.44,30.0]
[1759750173548,0.1,233.46,233.45,0.69]
[1759750174136,0.1,233.46,233.45,11.56647521]
[1759750174478,0.1,233.46,233.45,20.61954785]
[1759750174630,0.1,233.46,233.45,24.90312034]
[1759750174956,0.1,233.46,233.45,15.84798743]
[1759750175340,0.1,233.46,233.45,45.88798743]
[1759750175656,0.1,233.55,233.48,20.8]
[1759750175856,0.1,233.55,233.52,20.8]
[1759750176041,0.1,233.55,233.53,30.42]
[1759750176248,0.1,233.55,233.53,31.09]
[1759750176741,0.1,233.55,233.54,30.42]
[1759750177340,0.76,233.55,233.54,30.44]
[1759750177559,4.38191844,233.55,233.54,30.44]
[1759750177744,5.04191844,233.55,233.54,30.44]
[1759750178660,4.38191844,233.55,233.53,30.44]
[1759750179042,0.1,233.55,233.53,31.09]
[1759750179236,0.1,233.55,233.53,30.42]
[1759750179456,0.1,233.55,233.54,0.67]
[1759750179859,0.1,233.55,233.53,30.42]
[1759750180042,0.1,233.55,233.54,0.67]
[1759750181204,0.1,233.55,233.53,30.42]
[1759750181346,0.66,233.54,233.47,3.54530418]
[1759750181680,0.66,233.54,233.48,51.22]
[1759750182175,0.66,233.54,233.48,30.42]
[1759750182350,0.66,233.53,233.48,30.42]
[1759750182763,4.94227763,233.53,233.48,30.42]
[1759750183478,4.94227763,233.53,233.48,31.09]
[1759750183665,4.3818538,233.55,233.49,0.67]
[1759750183859,0.1,233.55,233.49,0.67]
[1759750185010,0.1,233.55,233.51,25.08244009]
[1759750185287,0.1,233.55,233.52,31.07]
[1759750185793,0.1,233.55,233.53,0.67]
[1759750186679,0.1,233.55,233.52,30.4]
[1759750186882,0.1,233.55,233.53,0.67]
[1759750188715,0.1,233.55,233.54,0.72]
[1759750188887,0.1,233.55,233.54,31.1]
[1759750189072,0.1,233.55,233.52,0.72]
[1759750189274,0.1,233.55,233.53,30.38]
[1759750190093,0.1,233.55,233.53,31.1]
[1759750190693,0.1,233.55,233.54,30.38]
[1759750191669,5.06179092,233.55,233.51,20.8]
[1759750191995,0.68,233.54,233.48,0.72]
[1759750192204,2.64419325,233.53,233.46,4.28138244]
[1759750192489,0.68,233.54,233.46,30.38]
[1759750192490,0.68,233.52,233.46,30.38]
[1759750193185,4.28247184,233.51,233.46,30.38]
[1759750193490,2.64419325,233.48,233.39,4.26530418]
[1759750193672,0.68,233.47,233.4,30.38]
[1759750193872,0.68,233.47,233.41,0.72]
[1759750195379,4.96320856,233.47,233.41,0.72]
[1759750195690,0.68,233.47,233.41,0.72]
[1759750195869,0.68,233.52,233.41,5.00420423]
[1759750196074,0.68,233.53,233.44,20.8]
[1759750196277,0.68,233.52,233.45,31.1]
[1759750196473,0.68,233.51,233.45,31.1]
[1759750197097,4.28265524,233.5,233.45,31.1]
[1759750197281,4.96265524,233.5,233.45,31.1]
[1759750197469,4.28265524,233.5,233.45,30.38]
[1759750197875,4.28226323,233.53,233.46,0.72]
[1759750198191,5.06190218,233.55,233.48,20.8]
[1759750198372,5.06190218,233.55,233.49,30.36]
[1759750198575,0.1,233.55,233.5,0.72]
[1759750198775,0.1,233.55,233.52,20.8]
[1759750198976,0.1,233.55,233.53,30.38]
[1759750199484,0.1,233.55,233.53,31.1]
[1759750200273,0.1,233.55,233.54,0.72]
[1759750200583,0.1,233.55,233.54,11.59647521]
[1759750200779,0.1,233.55,233.54,15.14177939]
[1759750200974,4.95955603,233.67,233.57,20.8]
[1759750201194,4.27955603,233.67,233.58,31.08]
[1759750201394,0.68,233.66,233.59,30.36]
[1759750201696,4.27955603,233.67,233.6,0.72]
[1759750202701,4.27917326,233.69,233.6,5.00073597]
[1759750202898,4.27917326,233.69,233.61,0.72]
[1759750203396,0.68,233.68,233.61,0.72]
[1759750203595,0.68,233.68,233.62,30.36]
[1759750204099,0.68,233.68,233.55,23.54957363]
[1759750204100,0.68,233.67,233.63,30.34]
[1759750204302,0.68,233.66,233.57,0.72]
[1759750204498,0.68,233.66,233.61,20.8]
[1759750204683,4.28008902,233.64,233.55,3.54530418]
[1759750204883,0.68,233.63,233.56,31.06]
[1759750205278,0.68,233.62,233.54,3.54530418]
[1759750205480,0.68,233.62,233.55,30.34]
[1759750205802,14.98031158,233.64,233.56,30.34]
[1759750205983,36.55126866,233.71,233.56,51.86]
[1759750205984,0.68,233.65,233.56,51.86]
[1759750206181,4.96004051,233.65,233.57,0.72]
[1759750207487,4.95961212,233.67,233.57,5.00134925]
[1759750207702,4.27961212,233.67,233.6,20.8]
[1759750207903,4.27961212,233.67,233.6,21.52]
[1759750208093,4.95961212,233.67,233.61,30.32]
[1759750208289,4.95961212,233.67,233.6,21.52]
[1759750208593,4.95961212,233.67,233.61,30.32]
[1759750208898,15.65846092,233.67,233.61,30.32]
[1759750209291,3.32419325,233.66,233.62,30.3]
[1759750209494,0.68,233.65,233.62,30.3]